[Event "Charlotte Spring GM-A 2024"]
[Site "Charlotte"]
[Date "2024.03.31"]
[Round "7.1"]
[White "Putnam, Liam"]
[Black "Wang, Tianqi"]
[Result "1/2-1/2"]
[ECO "D30"]
[WhiteElo "2323"]
[BlackElo "2344"]
[Annotator "RC"]
[PlyCount "89"]
[EventDate "2024.03.27"]
[EventType "tourn"]
[EventCountry "USA"]
[SourceTitle "playchess.com"]
[Source "ChessBase"]
[SourceQuality "1"]
[TimeControl "5400+30"]

1. d4 {[%emt 0:04:38]} d5 {[%emt 0:08:03]} 2. c4 {[%emt 0:00:22]} e6 {[%emt 0:00:11]} 3. Nf3 {[%emt 0:01:09]} c6 {[%emt 0:00:10]} 4. Qc2 {[%emt 0:02:31]} Nf6 {[%emt 0:05:52]} 5. g3 {[%emt 0:01:29]} dxc4 {[%emt 0:00:45]} 6. Qxc4 {[%emt 0:01:17]} b5 {[%emt 0:00:03]} 7. Qc2 {[%emt 0:05:22]} Bb7 {[%emt 0:00:04]} 8. Bg2 {[%emt 0:00:07]} Nbd7 {[%emt 0:00:17]} 9. a4 {[%emt 0:10:38]} a6 {[%emt 0:00:41]} 10. Ne5 {[%emt 0:08:09]} Nxe5 {[%emt 0:01:56]} 11. dxe5 {[%emt 0:00:07]} Nd5 {[%emt 0:00:09]} 12. O-O {[%emt 0:06:00]} Be7 {[%emt 0:00:27]} 13. Nc3 {[%emt 0:03:06]} Qb8 {[%emt 0:00:28]} 14. axb5 {[%emt 0:06:51]} axb5 {[%emt 0:00:10]} 15. Rxa8 {[%emt 0:00:28]} Bxa8 {[%emt 0:00:03]} 16. Nxd5 {[%emt 0:01:28]} cxd5 {[%emt 0:01:20]} 17. Be3 {[%emt 0:01:38]} O-O {[%emt 0:02:34]} 18. Bd4 {[%emt 0:00:13]} Rc8 {[%emt 0:00:26]} 19. Qd2 {[%emt 0:03:48]} Bc6 {[%emt 0:05:08]} 20. Ra1 {[%emt 0:01:26]} b4 {[%emt 0:00:43]} 21. b3 {[%emt 0:02:50]} Bb5 {[%emt 0:00:31]} 22. Bf3 {[%emt 0:00:54]} Bf8 {[%emt 0:01:19]} 23. Kg2 {[%emt 0:01:39]} g6 {[%emt 0:01:25]} 24. h4 {[%emt 0:01:54]} h6 {[%emt 0:01:21]} 25. Bg4 {[%emt 0:03:36]} Rc6 {[%emt 0:01:50]} 26. h5 {[%emt 0:01:19]} g5 {[%emt 0:04:11]} 27. f4 {[%emt 0:01:44]} gxf4 {[%emt 0:02:03]} 28. gxf4 {[%emt 0:00:20]} Qc8 {[%emt 0:00:34]} 29. Rf1 {[%emt 0:01:22]} Rc2 {[%emt 0:02:59]} 30. Qe3 {[%emt 0:00:16]} Bc5 {[%emt 0:02:06]} 31. Rf2 {[%emt 0:08:41]} Rc3 {[%emt 0:13:16]} 32. Qd2 {[%emt 0:00:47]} Bxd4 {[%emt 0:17:23]} 33. Qxd4 {[%emt 0:00:03]} Rxb3 {[%emt 0:00:10]} 34. f5 {[%emt 0:02:05]} Bd7 {[%emt 0:22:13]} 35. Qf4 {[%emt 0:03:36]} Qc4 {[%emt 0:01:37]} 36. fxe6 {[%emt 0:00:17]} Bxe6 {[%emt 0:00:45]} 37. Bxe6 {[%emt 0:00:09]} Qxf4 {[%emt 0:00:02]} 38. Rxf4 {[%emt 0:00:05]} fxe6 {[%emt 0:00:03]} 39. Rf6 {[%emt 0:00:07]} Re3 {[%emt 0:02:07]} 40. Rxe6 {[%emt 0:00:08]} Rxe2+ {[%emt 0:00:10]} 41. Kf3 {[%emt 0:00:06]} Re4 {[%emt 0:00:21]} 42. Rxh6 {[%emt 0:00:20]} Rxe5 {[%emt 0:00:28]} 43. Rb6 {[%emt 0:00:05]} Rxh5 {[%emt 0:00:32]} 44. Rxb4 {[%emt 0:00:04]} Kf7 {[%emt 0:00:13]} 45. Rb6 {[%emt 0:00:19]} 1/2-1/2

[Event "Charlotte Spring GM-A 2024"]
[Site "Charlotte"]
[Date "2024.03.31"]
[Round "7.2"]
[White "Chen, Ryo"]
[Black "Tsay, Vincent"]
[Result "1-0"]
[ECO "C07"]
[WhiteElo "2316"]
[BlackElo "2337"]
[Annotator "RC"]
[PlyCount "61"]
[EventDate "2024.03.27"]
[EventType "tourn"]
[EventCountry "USA"]
[SourceTitle "playchess.com"]
[Source "ChessBase"]
[SourceQuality "1"]
[TimeControl "5400+30"]

1. e4 {[%emt 1:31:00]} e6 {[%emt 0:00:54]} 2. d4 {[%emt 0:00:00]} d5 {[%emt 0:00:09]} 3. Nd2 {[%emt 0:00:00]} c5 {[%emt 0:00:14]} 4. Ngf3 {[%emt 0:00:00]} cxd4 {[%emt 0:00:28]} 5. Nxd4 {[%emt 0:00:00]} Nc6 {[%emt 0:00:09]} 6. Bb5 {[%emt 0:00:00]} Bd7 {[%emt 0:00:17]} 7. Nxc6 {[%emt 0:00:00]} bxc6 {[%emt 0:00:27]} 8. Bd3 {[%emt 0:00:00]} Bd6 {[%emt 0:00:19]} 9. Qe2 {[%emt 0:00:00]} Ne7 {[%emt 0:02:17]} 10. Nf3 {[%emt 0:00:00]} Qb8 {[%emt 0:07:28]} 11. e5 {[%emt 0:00:00]} Bc7 {[%emt 0:00:21]} 12. O-O {[%emt 0:00:00]} Ng6 {[%emt 0:07:35]} 13. Re1 {[%emt 0:00:00]} O-O {[%emt 0:00:48]} 14. g3 {[%emt 0:00:00]} Bb6 {[%emt 0:06:29]} 15. c4 {[%emt 0:00:00]} a5 {[%emt 0:04:33]} 16. Kg2 {[%emt 0:00:00]} a4 {[%emt 0:13:03]} 17. h4 {[%emt 0:00:00]} h6 {[%emt 0:02:34]} 18. h5 {[%emt 0:00:00]} Ne7 {[%emt 0:51:25]} 19. Bc2 {[%emt 0:00:00]} f5 {[%emt 0:00:00]} 20. exf6 {[%emt 0:00:00]} Rxf6 {[%emt 0:00:00]} 21. Qd3 {[%emt 0:00:00]} Nf5 {[%emt 0:00:00]} 22. Bf4 {[%emt 0:00:00]} Qa7 {[%emt 0:00:00]} 23. Re2 {[%emt 0:00:00]} g5 {[%emt 0:00:00]} 24. hxg6 {[%emt 0:00:00]} Be8 {[%emt 0:00:00]} 25. Rxe6 {[%emt 0:00:00]} Rxe6 {[%emt 0:00:00]} 26. Qxf5 {[%emt 0:00:00]} Re2 {[%emt 0:00:00]} 27. Bxh6 {[%emt 0:00:00]} Rxf2+ {[%emt 0:00:00]} 28. Kh1 {[%emt 0:00:00]} Qe7 {[%emt 0:00:00]} 29. g7 {[%emt 0:00:00]} Bg6 {[%emt 0:00:00]} 30. Qxg6 {[%emt 0:00:00]} Rxc2 {[%emt 0:00:00]} 31. Ng5 {[%emt 0:00:00]} 1-0

[Event "Charlotte Spring GM-A 2024"]
[Site "Charlotte"]
[Date "2024.03.31"]
[Round "7.3"]
[White "Ali Marandi, Cemil Can"]
[Black "Gauri, Shankar"]
[Result "1/2-1/2"]
[ECO "C67"]
[WhiteElo "2516"]
[BlackElo "2345"]
[Annotator "TA"]
[PlyCount "47"]
[EventDate "2024.03.27"]
[EventType "tourn"]
[EventCountry "USA"]
[SourceTitle "playchess.com"]
[Source "ChessBase"]
[SourceQuality "1"]
[TimeControl "5400+30"]

{[%evp 9,47,13,25,-34,-30,-25,-20,-19,-21,-35,-37,-30,-20,-16,33,40,28,6,5,-18,-7,-6,-25,-18,-27,-16,-39,-73,-58,-82,-56,-60,-60,-50,-31,-37,-33,-69,-17,-76]} 1. e4 {[%emt 0:00:03]} e5 {[%emt 0:06:32]} 2. Nf3 {[%emt 0:00:07]} Nc6 {[%emt 0:00:06]} 3. Bb5 {[%emt 0:00:06]} Nf6 {[%emt 0:00:22]} 4. O-O {[%emt 0:00:47]} Nxe4 {[%emt 0:00:26]} 5. d4 {[%emt 0:00:09]} Nd6 {[%emt 1:25:34]} 6. Ba4 {[%emt 0:00:09]} (6. Bxc6 $11 dxc6 7. dxe5) 6... exd4 $15 {[%emt 0:00:00]} 7. c3 {[%emt 0:00:52]} Be7 {[%emt 0:00:00]} 8. cxd4 {[%emt 0:00:54]} b5 {[%emt 0:00:00]} 9. Bb3 {[%emt 0:01:00]} O-O {[%emt 0:00:00]} 10. Re1 {[%emt 0:00:31]} Bb7 {[%emt 0:00:00]} 11. Nc3 {[%emt 0:02:42]} b4 {[%emt 0:00:00]} (11... Na5 $11) 12. Nd5 $14 {[%emt 0:01:55]} Re8 {[%emt 0:00:00]} 13. Bf4 {[%emt 0:19:09] And now Rc1 would win.} Na5 {[%emt 0:00:00]} 14. Rc1 {[%emt 0:05:11]} Bxd5 {[%emt 0:00:00]} 15. Bxd5 {[%emt 0:02:23]} c6 {[%emt 0:00:00]} 16. Bb3 {[%emt 0:01:26]} Nxb3 {[%emt 0:00:00]} 17. Qxb3 {[%emt 0:00:05]} a5 {[%emt 0:00:00]} 18. Re2 {[%emt 0:06:20]} Bf8 {[%emt 0:00:00]} 19. Rxe8 {[%emt 0:03:06]} Nxe8 {[%emt 0:00:00]} 20. Ne5 {[%emt 0:02:24]} Qf6 {[%emt 0:00:00]} 21. Be3 {[%emt 0:07:41]} a4 {[%emt 0:00:00]} 22. Qc4 {[%emt 0:04:48]} Qe7 {[%emt 0:00:00]} 23. Bd2 {[%emt 0:03:48]} Nc7 {[%emt 0:00:00]} (23... Nf6 $15 24. Nd3 Nd5) 24. Re1 {[%emt 0:04:28] Weighted Error Value: White=0.13 (very precise) /Black=0.11 (very precise) .  Mistake:       	White=1     	Black=2      Inaccurate:     	White=2     	Black=1      OK:         	White=7     	Black=7      Best:        	---       	Black=2} (24. Bxb4 $1 $11 Qxb4 25. Qxf7+ Kh8 26. Qxd7 Qxb2 27. Qxc6) 1/2-1/2

[Event "Charlotte Spring GM-A 2024"]
[Site "Charlotte"]
[Date "2024.03.31"]
[Round "7.4"]
[White "Levine, Joseph"]
[Black "Cruz, Cristhian"]
[Result "0-1"]
[ECO "A08"]
[WhiteElo "2372"]
[BlackElo "2487"]
[Annotator "TA"]
[PlyCount "54"]
[EventDate "2024.03.27"]
[EventType "tourn"]
[EventCountry "USA"]
[SourceTitle "playchess.com"]
[Source "ChessBase"]
[SourceQuality "1"]
[TimeControl "5400+30"]

{[%evp 15,54,14,16,-34,0,-58,0,-58,-60,-72,-78,-57,-47,-185,-178,-175,-159,-266,-289,-331,-320,-334,-312,-425,-414,-377,-354,-441,-443,-642,-628,-782,-760,-996,-965,-1085,-946,-899,-872,-904,-897]} 1. e4 {[%emt 0:00:14]} e6 {[%emt 0:04:27]} 2. d3 {[%emt 0:00:05]} d5 {[%emt 0:01:41]} 3. Nd2 {[%emt 0:00:05]} c5 {[%emt 0:01:27]} 4. Ngf3 {[%emt 0:00:04]} Nc6 {[%emt 0:00:10]} 5. g3 {[%emt 0:00:06]} Bd6 {[%emt 0:00:07]} 6. Bg2 {[%emt 0:00:04]} Nge7 {[%emt 0:00:08]} 7. O-O {[%emt 0:00:09]} O-O {[%emt 0:00:12]} 8. Re1 {[%emt 0:00:04]} b6 {[%emt 0:01:00]} 9. h4 {[%emt 0:12:30]} (9. a3 $11) 9... h6 {[%emt 0:05:01]} 10. h5 {[%emt 0:04:50]} (10. c3 $11) 10... f5 {[%emt 0:04:01]} ({Black should try} 10... Bc7 $15) 11. exd5 {[%emt 0:05:19]} ({Better is} 11. Nf1 $11) 11... exd5 $15 {[%emt 0:02:02] [#] Threatens to win with ...f4.} 12. c4 $1 {[%emt 0:00:11]} f4 {[%emt 0:04:06]} 13. cxd5 {[%emt 0:00:28]} Nb4 {[%emt 0:20:28]} 14. Qb3 {[%emt 0:13:32]} (14. Ne4 $15 fxg3 (14... Nbxd5 15. Qb3 $15) (14... Nexd5 15. a3 $16) 15. fxg3) 14... fxg3 {[%emt 0:05:28]} (14... Nbxd5 15. Nh4 Bb7 16. g4 $15) 15. fxg3 {[%emt 0:00:33] [#]} Bb7 $1 {[%emt 0:02:17]} (15... Nbxd5 16. Nh4 Bb7 (16... Bxg3 17. Rxe7 Bf2+ 18. Kh1 $11) 17. d4 $11) (15... Bxg3 16. d6+ Ned5 17. Re4 $15) (15... Nexd5 16. Ne4 a5 17. Nxd6 Qxd6 18. Bf4 $15) 16. Ne5 {[%emt 0:04:58]} (16. Ne4 $17 {is the only way for White.}) 16... Nf5 {[%emt 0:02:25]} (16... Nbxd5 17. Ndc4 $15) 17. Ndc4 {[%emt 0:55:48]} Nd4 {[%emt 0:08:54]} (17... Bxd5 18. Bxd5+ Nxd5 19. Nc6 $19) (17... Nxd5 18. Na5 c4 (18... bxa5 19. Qxb7 Nf6 20. Qxa8 $18) (18... Bxe5 $2 19. Nxb7 Bd4+ 20. Kh2 $18) 19. Qxc4 bxa5 20. Bxd5+ Bxd5 21. Qxd5+ Kh7 22. Bf4 $14) (17... Nxg3 $2 18. Nxd6 Qxd6 19. d4 $17) 18. Qd1 {[%emt 0:00:00]} Bxd5 {[%emt 0:03:54] ...Bxe5 is the strong threat.} ({Don't play} 18... Nxd5 19. Qg4 Bxe5 20. Rxe5 $19) 19. Bf4 {[%emt 0:00:00]} Bxg2 {[%emt 0:03:06]} 20. Kxg2 {[%emt 0:00:00]} Nbc2 {[%emt 0:01:55]} 21. Qg4 {[%emt 0:00:00][%cal Oe1e4]} Nxa1 {[%emt 0:01:50] Black is clearly winning.} (21... Nxe1+ 22. Rxe1 Bxe5 23. Nxe5 $19) 22. Nc6 {[%emt 0:00:00]} (22. Rxa1 $142 Bxe5 23. Bxe5 Qd5+ 24. Qe4) 22... Nxc6 $19 {[%emt 0:05:09]} 23. Nxd6 {[%emt 0:00:00]} Nc2 {[%emt 0:04:08]} 24. Re6 {[%emt 0:00:00]} Qd7 {[%emt 0:03:33][%cal Of8f4] Strongly threatening ...Rxf4!} 25. Bxh6 {[%emt 0:00:00]} N6d4 {[%emt 0:02:11]} ({Not} 25... Rf6 26. Re8+ Rxe8 27. Qxd7 $11) 26. Rg6 {[%emt 0:00:00]} Qxg4 {[%emt 0:00:19]} 27. Rxg4 {[%emt 0:00:00]} Kh7 {[%emt 0:00:23] White did not feel at home in the position after the opening.   Weighted Error Value: White=0.88/Black=0.18 (very precise) .  Mistake:       	White=5     	Black=1      Inaccurate:     	White=1     	Black=1      OK:         	---       	Black=7      Best:        	White=2     	---        Strong:       	White=1     	---} 0-1

[Event "Charlotte Spring GM-A 2024"]
[Site "Charlotte"]
[Date "2024.03.31"]
[Round "7.5"]
[White "Homa, Seth"]
[Black "Cordova, Emilio"]
[Result "0-1"]
[ECO "A17"]
[WhiteElo "2234"]
[BlackElo "2551"]
[Annotator "TA"]
[PlyCount "64"]
[EventDate "2024.03.27"]
[EventType "tourn"]
[EventCountry "USA"]
[SourceTitle "playchess.com"]
[Source "ChessBase"]
[SourceQuality "1"]
[TimeControl "5400+30"]

{[%evp 19,64,16,28,0,0,0,0,0,1,0,-6,-23,7,8,4,-18,0,-10,-9,-32,-9,-7,-6,-23,0,-63,0,-89,-68,-92,-62,-197,-229,-203,-181,-404,-327,-791,-775,-900,-846,-845,-781,-1339,-1320,-2961,-2868]} 1. c4 {[%emt 0:00:03]} b6 {[%emt 0:04:26]} 2. Nc3 {[%emt 0:00:35]} c5 {[%emt 0:00:25]} 3. e4 {[%emt 0:00:41]} e6 {[%emt 0:01:27]} 4. g3 {[%emt 0:00:26]} Bb7 {[%emt 0:00:10]} 5. Bg2 {[%emt 0:00:15]} a6 {[%emt 0:00:30]} 6. d3 {[%emt 0:01:19]} Nf6 {[%emt 0:02:32]} 7. Nf3 {[%emt 0:00:26][%cal Bg1f3,Bf3e1,Be1c2][%mdl 32]} d6 {[%emt 0:00:25]} 8. O-O {[%emt 0:00:20]} Be7 {[%emt 0:00:38]} 9. b3 {[%emt 0:00:25]} O-O {[%emt 0:00:32]} 10. Bb2 {[%emt 0:00:07]} Nc6 {[%emt 0:02:33]} 11. Ne1 {[%emt 0:00:37]} Nd7 {[%emt 0:06:12]} 12. Nc2 {[%emt 0:00:48]} Bf6 {[%emt 0:00:22]} 13. Rb1 {[%emt 0:05:56] The position is equal.} h6 {[%emt 0:07:42]} 14. f4 {[%emt 0:00:48]} b5 {[%emt 0:03:17]} 15. Kh1 {[%emt 0:15:37]} bxc4 {[%emt 0:07:10]} 16. dxc4 {[%emt 0:00:40]} Qc7 {[%emt 0:02:53]} 17. g4 {[%emt 0:14:09]} Rad8 {[%emt 0:04:15]} 18. Qe1 {[%emt 0:07:22]} Nb4 {[%emt 0:00:50]} 19. Qd2 {[%emt 0:08:35]} Nxc2 {[%emt 0:01:01]} 20. Qxc2 {[%emt 0:00:09]} Bd4 {[%emt 0:00:11]} 21. Rbe1 {[%emt 0:00:54]} Rfe8 {[%emt 0:03:55]} 22. Ne2 {[%emt 0:03:13]} (22. g5 $11) 22... e5 {[%emt 0:02:24] Black is more active.} (22... Bxb2 $15 23. Qxb2 d5 (23... Nf6 24. Ng3 $11) 24. cxd5 exd5) 23. Bxd4 {[%emt 0:06:09]} (23. g5 $11) 23... cxd4 $17 {[%emt 0:01:47]} 24. Ng3 {[%emt 0:04:41]} exf4 {[%emt 0:04:28]} 25. Rxf4 {[%emt 0:01:23] [#] White does not recover from this.} ({White should play} 25. Nf5 $15) 25... d5 $1 $19 {[%emt 0:01:47][%mdl 512]} 26. Ref1 {[%emt 0:01:06]} d3 {[%emt 0:01:45]} 27. Qf2 {[%emt 0:17:03] [#]} (27. Qxd3 Ne5 28. Qc3 dxc4 29. bxc4) 27... dxe4 $1 {[%emt 0:00:20]} ({Not} 27... dxc4 28. Rxf7 Qc5 (28... c3 29. g5 $17) 29. bxc4 Qxf2 (29... Qxc4 $2 30. Qb2 $18) 30. R7xf2 $19) 28. Rxf7 $2 {[%emt 0:01:00]} (28. Nxe4 d2 29. Nxd2 (29. Qxd2 $2 {perishes.} Nc5 $19)) 28... e3 {[%emt 0:00:30] Black is clearly winning.} 29. Qf5 {[%emt 0:06:00]} Bxg2+ {[%emt 0:00:20]} 30. Kxg2 {[%emt 0:00:06]} Qc6+ {[%emt 0:02:12]} 31. Kh3 {[%emt 0:00:37]} e2 {[%emt 0:01:34]} 32. Rf4 {[%emt 0:00:36]} e1=Q {[%emt 0:01:34] Weighted Error Value: White=1.45/Black=0.19 (very precise) .  Mistake:       	White=5     	Black=1      Inaccurate:     	---       	Black=2      OK:         	White=2     	Black=4      Best:        	---       	Black=1      Strong:       	---       	Black=1      Brilliant:      	---       	Black=1} 0-1

[Event "Charlotte Spring GM-A 2024"]
[Site "Charlotte"]
[Date "2024.03.31"]
[Round "8.1"]
[White "Wang, Tianqi"]
[Black "Cordova, Emilio"]
[Result "1/2-1/2"]
[ECO "B22"]
[WhiteElo "2344"]
[BlackElo "2551"]
[Annotator "TA"]
[PlyCount "150"]
[EventDate "2024.03.27"]
[EventType "tourn"]
[EventCountry "USA"]
[SourceTitle "playchess.com"]
[Source "ChessBase"]
[SourceQuality "1"]
[TimeControl "5400+30"]

{[%evp 60,150,218,206,181,149,133,130,113,123,106,40,275,262,518,505,714,707,7189,6091,29964,29967,11236,12831,5591,975,1566,757,1091,762,720,718,649,941,1130,1414,1415,669,1506,1431,1334,1120,1446,1305,1277,1408,9954,10810,10796,9954,5983,8,8,8,8,8,8,8,8,8,8,8,8,8,8,8,8,8,8,8,8,8,8,8,8,8,8,8,8,0,0,0,0,0,0,0,0,0,0,0,0,0,0]} 1. e4 {[%emt 0:05:21]} c5 {[%emt 0:00:16]} 2. Nf3 {[%emt 0:00:06]} a6 {[%emt 0:01:11]} 3. c3 {[%emt 0:00:14]} e6 {[%emt 0:00:56]} 4. d4 {[%emt 0:00:33]} d5 {[%emt 0:00:08]} 5. exd5 {[%emt 0:04:16]} exd5 {[%emt 0:00:30]} 6. Bd3 {[%emt 0:01:16]} Nc6 {[%emt 0:01:18] B22: Sicilian: 2 c3.} 7. O-O {[%emt 0:00:43]} c4 {[%emt 0:00:35]} 8. Re1+ {[%emt 0:00:34]} Be7 {[%emt 0:00:40]} 9. Bc2 {[%emt 0:00:05]} Nf6 {[%emt 0:00:08]} 10. Nbd2 $146 {[%emt 0:03:56]} ({Predecessor:} 10. b3 cxb3 11. axb3 O-O 12. Qd3 Ne4 13. Ba3 Bxa3 14. Rxa3 Bf5 15. Qd1 Rc8 16. Bd3 {0-1 Karalkin,M (2141)-Pridorozhni,A (2599) RUS-ch blitz 2019 (1)}) 10... O-O {[%emt 0:00:15]} 11. Nf1 {[%emt 0:00:40]} Bd6 {[%emt 0:02:15]} 12. Bg5 {[%emt 0:04:14]} h6 {[%emt 0:02:11]} 13. Bh4 {[%emt 0:00:08]} Bg4 {[%emt 0:12:39]} 14. Ne3 {[%emt 0:02:01]} Be6 {[%emt 0:00:38]} 15. Nf5 {[%emt 0:07:25]} Bxf5 {[%emt 0:00:13]} 16. Bxf5 {[%emt 0:00:07]} g5 {[%emt 0:16:31]} 17. Bg3 {[%emt 0:07:57]} Bxg3 {[%emt 0:00:33]} 18. hxg3 {[%emt 0:00:04]} Ne8 {[%emt 0:01:55]} 19. Nh2 {[%emt 0:03:12]} Ng7 {[%emt 0:00:33]} 20. Qf3 {[%emt 0:00:28]} Ne7 {[%emt 0:04:04]} 21. g4 {[%emt 0:07:17]} Qd6 {[%emt 0:02:56]} 22. Nf1 {[%emt 0:02:31]} Rad8 {[%emt 0:07:34]} 23. Ne3 {[%emt 0:05:50]} Qf4 {[%emt 0:02:47]} 24. Qh3 {[%emt 0:19:38]} Nexf5 {[%emt 0:00:06]} 25. gxf5 {[%emt 0:00:09]} h5 {[%emt 0:00:03]} 26. g3 {[%emt 0:00:31]} Qf3 {[%emt 0:00:05]} 27. Qg2 {[%emt 0:00:16]} Qxg2+ {[%emt 0:00:05]} 28. Kxg2 {[%emt 0:00:03]} f6 {[%emt 0:00:08]} 29. b3 {[%emt 0:00:20]} b5 {[%emt 0:00:16]} 30. a4 {[%emt 0:01:41]} Rfe8 {[%emt 0:00:55]} 31. axb5 {[%emt 0:04:51]} axb5 {[%emt 0:00:06]} 32. bxc4 {[%emt 0:01:57]} bxc4 {[%emt 0:00:39]} 33. Reb1 {[%emt 0:00:49]} Rxe3 {[%emt 0:00:42]} 34. fxe3 {[%emt 0:00:04]} Nxf5 {[%emt 0:00:04]} 35. Ra7 {[%emt 0:05:18]} (35. Rb5 $16 {And now e4 would win.} Re8 36. e4 Rxe4 (36... Ne3+ $2 37. Kf3 $18) 37. Rxd5 Ne3+ 38. Kf3) 35... Nxe3+ $2 {[%emt 0:00:22]} (35... g4 $1 $14) 36. Kf3 $18 {[%emt 0:00:27]} Nf5 $2 {[%emt 0:01:00]} (36... Ng4 {was called for.} 37. Rbb7 Nh2+ 38. Ke2 (38. Kg2 Ng4 $18) 38... Re8+ 39. Re7 Rc8 40. Rg7+ Kh8) 37. g4 $18 {[%emt 0:02:25]} Nh4+ {[%emt 0:00:46]} 38. Kg3 {[%emt 0:00:31]} Re8 {[%emt 0:00:20]} 39. Rbb7 {[%emt 0:01:34]} Re3+ {[%emt 0:01:18]} 40. Kf2 {[%emt 0:00:08]} Re8 {[%emt 0:00:03]} 41. Rg7+ {[%emt 0:01:23]} Kh8 {[%emt 0:00:05]} 42. Rh7+ {[%emt 0:05:10]} Kg8 {[%emt 0:00:06]} 43. Rag7+ {[%emt 0:00:22]} Kf8 {[%emt 0:00:05]} 44. gxh5 {[%emt 0:00:09]} Nf5 {[%emt 0:00:26]} 45. Rg6 {[%emt 0:00:43]} Re4 {[%emt 0:00:06]} 46. Rxf6+ {[%emt 0:00:53]} Kg8 {[%emt 0:00:05]} 47. Rxf5 {[%emt 0:01:28]} Kxh7 {[%emt 0:00:07]} 48. Rxg5 {[%emt 0:00:05]} ({Not} 48. Rxd5 Kh6 $16) 48... Rh4 {[%emt 0:00:16]} 49. Kg3 {[%emt 0:01:08]} ({Less strong is} 49. Rxd5 Rh3 $16) 49... Rh1 {[%emt 0:00:13]} 50. Rxd5 {[%emt 0:00:58]} Rc1 {[%emt 0:00:05]} 51. Rc5 {[%emt 0:00:14]} Rxc3+ {[%emt 0:00:06]} 52. Kf4 {[%emt 0:00:08]} Rh3 {[%emt 0:04:07]} 53. Rxc4 {[%emt 0:00:39]} Rxh5 {[%emt 0:00:18]} 54. Rc5 {[%emt 0:00:45]} Rh4+ {[%emt 0:00:11]} 55. Ke3 $2 {[%emt 0:02:31]} ({White has to play} 55. Ke5 $18 Kg7 56. d5) 55... Kg6 $1 $11 {[%emt 0:00:32]} 56. Re5 {[%emt 0:00:33]} Kf6 {[%emt 0:00:07]} 57. Kd3 {[%emt 0:00:07]} Rh8 {[%emt 0:01:36]} 58. Re4 {[%emt 0:00:36]} Rd8 {[%emt 0:02:43]} 59. Re1 {[%emt 0:01:05]} Kf5 {[%emt 0:00:48]} 60. Re5+ {[%emt 0:00:38]} Kf6 {[%emt 0:00:09]} 61. Kc4 {[%emt 0:00:21]} Rc8+ {[%emt 0:00:19]} 62. Rc5 {[%emt 0:00:43]} Rd8 {[%emt 0:02:20]} 63. Rc6+ {[%emt 0:00:15]} Ke7 {[%emt 0:00:07]} 64. Kc5 {[%emt 0:00:18]} Ra8 {[%emt 0:00:29]} 65. Rc7+ {[%emt 0:00:59]} Kd8 {[%emt 0:00:25]} 66. Rh7 {[%emt 0:00:32]} Ra5+ {[%emt 0:00:26]} 67. Kc6 {[%emt 0:00:41]} Ra6+ {[%emt 0:00:08]} 68. Kb5 {[%emt 0:00:07]} Ra1 {[%emt 0:00:20]} 69. d5 {[%emt 0:00:30]} Rc1 {[%emt 0:00:11]} 70. Kb6 {[%emt 0:00:37]} Rc2 {[%emt 0:00:13]} 71. Rh6 {[%emt 0:00:47]} Kd7 {[%emt 0:00:11]} 72. Rc6 {[%emt 0:00:21]} Rb2+ {[%emt 0:00:05]} 73. Kc5 {[%emt 0:00:12]} Rc2+ {[%emt 0:00:07]} 74. Kd4 {[%emt 0:00:30]} Rxc6 {[%emt 0:00:06]} 75. dxc6+ {[%emt 0:00:01]} Kxc6 {[%emt 0:00:40]} 1/2-1/2

[Event "Charlotte Spring GM-A 2024"]
[Site "Charlotte"]
[Date "2024.03.31"]
[Round "8.2"]
[White "Cruz, Cristhian"]
[Black "Homa, Seth"]
[Result "1-0"]
[ECO "A34"]
[WhiteElo "2487"]
[BlackElo "2234"]
[Annotator "TA"]
[PlyCount "51"]
[EventDate "2024.03.27"]
[EventType "tourn"]
[EventCountry "USA"]
[SourceTitle "playchess.com"]
[Source "ChessBase"]
[SourceQuality "1"]
[TimeControl "5400+30"]

{[%evp 10,51,25,22,14,23,25,24,31,15,28,14,14,0,7,0,1,0,43,24,44,21,47,27,69,12,2,16,11,7,26,22,151,143,132,129,167,164,395,403,435,436,771,764]} 1. c4 {[%emt 0:05:42]} c5 {[%emt 0:00:16]} 2. Nc3 {[%emt 0:00:32]} Nf6 {[%emt 0:00:11]} 3. g3 {[%emt 0:00:49]} d5 {[%emt 0:00:14]} 4. cxd5 {[%emt 0:00:11]} Nxd5 {[%emt 0:00:13]} 5. Bg2 {[%emt 0:00:06]} Nc7 {[%emt 0:00:14]} 6. e3 {[%emt 0:00:36]} e5 {[%emt 0:02:03]} 7. Nge2 {[%emt 0:02:14]} Nc6 {[%emt 0:00:15]} 8. O-O {[%emt 0:00:11][%cal Od2d4]} Be7 {[%emt 0:00:11] White has an edge.} 9. f4 {[%emt 0:02:41]} O-O {[%emt 0:06:27]} 10. fxe5 {[%emt 0:04:14]} Nxe5 {[%emt 0:00:14]} 11. Nf4 {[%emt 0:00:48]} Bg4 {[%emt 0:12:26]} 12. Qc2 {[%emt 0:01:52]} Rb8 {[%emt 0:00:26]} 13. b3 {[%emt 0:01:26]} Re8 {[%emt 0:07:28]} 14. Bb2 {[%emt 0:04:43]} Bf8 {[%emt 0:00:15]} 15. h3 {[%emt 0:05:24]} Bd7 {[%emt 0:00:47]} 16. Rad1 {[%emt 0:01:13]} c4 {[%emt 0:11:45]} 17. bxc4 {[%emt 0:12:03] White is more active.} ({White should play} 17. d4 $14 cxd3 18. Nxd3 Nxd3 19. Rxd3) 17... Nxc4 $11 {[%emt 0:00:18]} 18. Ba1 {[%emt 0:00:07] Threatening Ne4.} b5 {[%emt 0:00:16]} 19. Ne4 {[%emt 0:07:54][%cal Bc3e4,Be4f2,Bf2g4,Bg4f6][%mdl 32] Threatens to win with Nh5.} f5 {[%emt 0:05:51]} 20. Nf2 {[%emt 0:06:25]} Qg5 {[%emt 0:13:37] [#]} (20... Bd6 $11 {keeps the balance.}) 21. d3 $1 $16 {[%emt 0:02:09]} Nxe3 {[%emt 0:00:12]} 22. Qxc7 {[%emt 0:00:09]} Qxg3 {[%emt 0:00:26]} 23. Qxd7 {[%emt 0:08:47][%cal Od1e1]} Qxf4 $2 {[%emt 0:00:21] [#]} (23... Rbd8 24. Qxb5 (24. Qxa7 Qxf4 $11) (24. Nh1 Qg5 $16) 24... Qxf4) 24. Ng4 $1 $18 {[%emt 0:01:12][%mdl 512] Hoping for Nf6+.} Nxf1 {[%emt 0:06:01]} (24... Qg3 25. Nxe3) 25. Rxf1 {[%emt 0:07:40]} Rbd8 {[%emt 0:08:40]} (25... Qg5 $142) 26. Nf6+ {[%emt 0:00:47] Weighted Error Value: White=0.09 (flawless) /Black=0.35.  Mistake:       	White=1     	Black=3      Inaccurate:     	---       	Black=2      OK:         	White=6     	Black=8      Best:        	White=1     	---        Strong:       	White=1     	---        Brilliant:      	White=1     	---} ({Not} 26. Qxb5 Qg5 $16) 1-0